fUST/lending_fUST_20250725
["ID","MTS","AMOUNT","RATE_DAILY","PERIOD"]
[374679396,1753410642051,-460.3759838,0.00017502,2]
[374679398,1753410642060,-467.85927427,0.00017502,2]
[374679400,1753410642070,-460.0,0.00017502,2]
[374679402,1753410642079,-460.0,0.00017502,2]
[374679404,1753410642088,-460.0,0.00017502,2]
[374679406,1753410642098,-502.47208717,0.00017502,2]
[374679408,1753410642107,-334.20891961,0.00017502,2]
[374679410,1753410642117,-461.37572795,0.00017502,2]
[374679412,1753410642127,-463.67311162,0.00017502,2]
[374679414,1753410642136,-460.0,0.00017502,2]
[374679416,1753410642146,-460.0,0.00017502,2]
[374679418,1753410642155,-464.71695467,0.00017502,2]
[374679420,1753410642165,-460.0,0.00017502,2]
[374679422,1753410642174,-460.0,0.00017502,2]
[374679424,1753410642184,-461.9780516,0.00017502,2]
[374679426,1753410642193,-245.30844522,0.00017502,2]
[374679428,1753410642202,-460.0,0.00017502,2]
[374679430,1753410642211,-462.52332452,0.00017502,2]
[374679432,1753410642220,-460.0,0.00017502,2]
[374679434,1753410642230,-515.15,0.00017502,2]
[374679436,1753410642239,-460.0,0.00017502,2]
[374679438,1753410642249,-460.0,0.00017502,2]
[374679440,1753410642259,-460.0,0.00017502,2]
[374679442,1753410642268,-461.06038865,0.00017502,2]
[374679444,1753410642278,-460.0,0.00017502,2]
[374679446,1753410642289,-460.0,0.00017502,2]
[374679448,1753410642299,-460.0,0.00017502,2]
[374679450,1753410642308,-460.0,0.00017502,2]
[374679452,1753410642318,-373.005307,0.00017502,2]
[374679454,1753410642327,-460.0,0.00017502,2]
[374679456,1753410642337,-555.36,0.00017502,2]
[374679458,1753410642346,-461.11986644,0.00017502,2]
[374679460,1753410642355,-500.0,0.00017502,2]
[374679462,1753410642365,-500.0,0.00017502,2]
[374679464,1753410642374,-460.0,0.00017502,2]
[374679466,1753410642383,-560.94463903,0.00017502,2]
[374679468,1753410642393,-461.77854583,0.00017502,2]
[374679470,1753410642402,-462.83327977,0.00017502,2]
[374679472,1753410642412,-460.0,0.00017502,2]
[374679474,1753410642421,-463.41794414,0.00017502,2]
[374679476,1753410642430,-460.0,0.00017502,2]
[374679478,1753410642439,-463.93177782,0.00017502,2]
[374679479,1753410642448,-462.88585897,0.00017502,2]
[374679481,1753410642458,-460.0,0.00017502,2]
[374679483,1753410642467,-460.0,0.00017502,2]
[374679485,1753410642476,-460.0,0.00017502,2]
[374679487,1753410642486,-460.0,0.00017502,2]
[374679489,1753410642500,-460.0,0.00017502,2]
[374679491,1753410642510,-460.0,0.00017502,2]
[374679493,1753410642519,-460.0,0.00017502,2]
[374679495,1753410642528,-460.0,0.00017502,2]
[374679497,1753410642540,-460.0,0.00017502,2]
[374679500,1753410642550,-460.0,0.00017502,2]
[374679501,1753410642559,-1327.67,0.00017502,2]
[374679503,1753410642569,-460.0,0.00017502,2]
[374679505,1753410642579,-460.0,0.00017502,2]
[374679508,1753410642590,-460.0,0.00017502,2]
[374679510,1753410642600,-460.0,0.00017502,2]
[374679512,1753410642609,-460.0,0.00017502,2]
[374679514,1753410642619,-460.0,0.00017502,2]
[374679516,1753410642629,-460.0,0.00017502,2]
[374679518,1753410642638,-460.0,0.00017502,2]
[374679520,1753410642648,-460.0,0.00017502,2]
[374679522,1753410642658,-460.0,0.00017502,2]
[374679524,1753410642667,-460.0,0.00017502,2]
[374679526,1753410642677,-460.0,0.00017502,2]
[374679528,1753410642688,-460.0,0.00017502,2]
[374679530,1753410642698,-460.0,0.00017502,2]
[374679533,1753410642707,-460.0,0.00017502,2]
[374679536,1753410642718,-523.23,0.00017502,2]
[374679539,1753410642727,-500.0,0.00017502,2]
[374679542,1753410642737,-500.0,0.00017502,2]
[374679545,1753410642747,-461.35469336,0.00017502,2]
[374679548,1753410642756,-460.0,0.00017502,2]
[374679551,1753410642765,-491.61,0.00017502,2]
[374679554,1753410642775,-460.0,0.00017502,2]
[374679556,1753410642785,-461.01720859,0.00017502,2]
[374679559,1753410642795,-460.0,0.00017502,2]
[374679563,1753410642804,-460.0,0.00017502,2]
[374679565,1753410642813,-462.45740781,0.00017502,2]
[374679567,1753410642822,-460.0,0.00017502,2]
[374679569,1753410642832,-460.0,0.00017502,2]
[374679571,1753410642841,-460.0,0.00017502,2]
[374679573,1753410642850,-460.0,0.00017502,2]
[374679575,1753410642859,-460.0,0.00017502,2]
[374679577,1753410642868,-460.0,0.00017502,2]
[374679579,1753410642878,-460.0,0.00017502,2]
[374679581,1753410642887,-460.0,0.00017502,2]
[374679583,1753410642896,-460.0,0.00017502,2]
[374679585,1753410642906,-460.0,0.00017502,2]
[374679587,1753410642915,-500.0,0.00017502,2]
[374679589,1753410642924,-460.0,0.00017502,2]
[374679591,1753410642933,-636.24,0.00017502,2]
[374679593,1753410642943,-460.0,0.00017502,2]
[374679595,1753410642952,-460.0,0.00017502,2]
[374679596,1753410642962,-460.46533976,0.00017502,2]
[374679598,1753410642971,-460.0,0.00017502,2]
[374679600,1753410642981,-460.0,0.00017502,2]
[374679602,1753410642990,-460.0,0.00017502,2]
[374679604,1753410643000,-460.0,0.00017502,2]
[374679606,1753410643011,-500.0,0.00017502,2]
[374679608,1753410643020,-500.0,0.00017502,2]
[374679610,1753410643030,-460.0,0.00017502,2]
[374679612,1753410643041,-460.0,0.00017502,2]
[374679614,1753410643051,-465.04220486,0.00017502,2]
[374679616,1753410643060,-460.0,0.00017502,2]
[374679619,1753410643069,-460.0,0.00017502,2]
[374679620,1753410643079,-460.0,0.00017502,2]
[374679622,1753410643088,-460.0,0.00017503,2]
[374679625,1753410643098,-460.0,0.00017503,2]
[374679627,1753410643108,-460.0,0.00017503,2]
[374679628,1753410643117,-460.0,0.00017503,2]
[374679630,1753410643126,-460.0,0.00017503,2]
[374679632,1753410643136,-460.0,0.00017503,2]
[374679634,1753410643145,-460.0,0.00017503,2]
[374679636,1753410643155,-460.0,0.00017503,2]
[374679638,1753410643164,-460.0,0.00017503,2]
[374679640,1753410643174,-460.0,0.00017503,2]
[374679643,1753410643184,-460.0,0.00017503,2]
[374679645,1753410643194,-460.0,0.00017503,2]
[374679647,1753410643203,-460.0,0.00017503,2]
[374679649,1753410643213,-461.86251304,0.00017503,2]
[374679651,1753410643222,-460.0,0.00017503,2]
[374679653,1753410643231,-460.0,0.00017503,2]
[374679655,1753410643240,-500.0,0.00017503,2]
[374679657,1753410643250,-460.0,0.00017503,2]
[374679659,1753410643259,-460.0,0.00017503,2]
[374679661,1753410643269,-460.0,0.00017503,2]
[374679662,1753410643278,-460.0,0.00017503,2]
[374679664,1753410643289,-460.0,0.00017503,2]
[374679666,1753410643299,-460.0,0.00017503,2]
[374679669,1753410643309,-460.0,0.00017503,2]
[374679670,1753410643319,-203.87518348,0.00017503,2]
[374679672,1753410643329,-460.0,0.00017503,2]
[374679674,1753410643339,-286.93970212,0.00017503,2]
[374679676,1753410643348,-461.28009507,0.00017503,2]
[374679678,1753410643357,-500.0,0.00017503,2]
[374679681,1753410643367,-500.0,0.00017505,2]
[374679683,1753410643377,-500.0,0.00017505,2]
[374679685,1753410643386,-500.0,0.00017505,2]
[374679686,1753410643395,-500.0,0.00017505,2]
[374679688,1753410643405,-500.0,0.00017505,2]
[374679690,1753410643415,-465.11457066,0.00017506,2]
[374679693,1753410643424,-460.0,0.00017506,2]
[374679694,1753410643436,-460.0,0.00017506,2]
[374679696,1753410643445,-219.04160023,0.00017506,2]
[374679698,1753410643455,-460.0,0.00017506,2]
[374679700,1753410643464,-460.0,0.00017506,2]
[374679702,1753410643473,-460.86535373,0.00017506,2]
[374679704,1753410643482,-460.0,0.00017506,2]
[374679706,1753410643495,-460.0,0.00017506,2]
[374679708,1753410643504,-460.0,0.00017506,2]
[374679710,1753410643513,-460.58397263,0.00017506,2]
[374679712,1753410643523,-460.0,0.00017506,2]
[374679714,1753410643533,-460.0,0.00017506,2]
[374679716,1753410643543,-529.65,0.00017506,2]
[374679718,1753410643552,-461.2928467,0.00017506,2]
[374679720,1753410643561,-460.0,0.00017506,2]
[374679722,1753410643570,-460.0,0.00017506,2]
[374679724,1753410643580,-460.0,0.00017506,2]
[374679726,1753410643589,-460.0,0.00017506,2]
[374679728,1753410643599,-460.91373367,0.00017506,2]
[374679730,1753410643608,-461.79091912,0.00017506,2]
[374679731,1753410643616,-460.0,0.00017506,2]
[374679733,1753410643626,-688.45,0.00017506,2]
[374679735,1753410643635,-460.0,0.00017506,2]
[374679737,1753410643645,-460.0,0.00017506,2]
[374679739,1753410643654,-407.23086416,0.00017506,2]
[374679756,1753410643810,-52.76913584,0.00017506,2]
[374679758,1753410643819,-460.0,0.00017506,2]
[374679760,1753410643829,-460.0,0.00017506,2]
[374679762,1753410643838,-460.0,0.00017506,2]
[374679764,1753410643847,-460.0,0.00017506,2]
[374679766,1753410643856,-500.0,0.00017508,2]
[374679768,1753410643865,-500.0,0.00017508,2]
[374679770,1753410643875,-500.0,0.00017508,2]
[374679772,1753410643884,-500.0,0.00017512,2]
[374679774,1753410643894,-500.0,0.00017573,2]
[374679776,1753410643904,-500.0,0.00017573,2]
[374679778,1753410643914,-500.0,0.00017573,2]
[374679780,1753410643924,-500.0,0.00017573,2]
[374679782,1753410643934,-600.70191841,0.00017666,2]
[374679784,1753410643943,-460.0,0.00017676,2]
[374679786,1753410643953,-559.7,0.00017676,2]
[374679788,1753410643962,-460.0,0.00017676,2]
[374679790,1753410643972,-494.51,0.00017676,2]
[374679792,1753410643982,-389.25193821,0.00017676,2]
[374679794,1753410643991,-418.41892179,0.00017676,2]
[374679796,1753410644000,-469.52,0.00017676,2]
[374679798,1753410644010,-515.84,0.00017676,2]
[374679800,1753410644020,-554.32,0.00017676,2]
[374679802,1753410644029,-462.9404674,0.00017676,2]
[374679804,1753410644039,-460.0,0.00017676,2]
[374679806,1753410644048,-2480.89,0.00017676,2]
[374679808,1753410644058,-500.0,0.00017709,2]
[374679810,1753410644067,-500.0,0.00017773,2]
[374679812,1753410644076,-500.98429778,0.00017773,2]
[374679814,1753410644086,-500.0,0.00017773,2]
[374679816,1753410644095,-501.11409188,0.00017773,2]
[374679818,1753410644105,-460.0,0.00017775,2]
[374679820,1753410644115,-460.0,0.00017775,2]
[374679822,1753410644125,-460.0,0.00017775,2]
[374679824,1753410644135,-460.0,0.00017775,2]
[374679826,1753410644147,-268.59766604,0.00017775,2]
[374679828,1753410644157,-460.0,0.00017775,2]
[374679830,1753410644167,-460.0,0.00017775,2]
[374679832,1753410644178,-460.0,0.00017775,2]
[374679835,1753410644187,-461.17967946,0.00017775,2]
[374679837,1753410644197,-607.52876686,0.00017775,2]
[374679839,1753410644207,-293.04649783,0.00017775,2]
[374679841,1753410644216,-531.83,0.00017775,2]
[374679843,1753410644229,-460.0,0.00017775,2]
[374679845,1753410644238,-285.10075726,0.00017775,2]
[374679847,1753410644247,-177.20076303,0.00017775,2]
[374679849,1753410644257,-460.0,0.00017775,2]
[374679851,1753410644266,-460.0,0.00017775,2]
[374679853,1753410644275,-460.0,0.00017775,2]
[374679855,1753410644285,-460.0,0.00017775,2]
[374679857,1753410644295,-467.34993638,0.00017775,2]
[374679859,1753410644306,-522.73120998,0.00017775,2]
[374679861,1753410644316,-460.0,0.00017775,2]
[374679863,1753410644325,-462.22411371,0.00017775,2]
[374679865,1753410644335,-462.69056021,0.00017775,2]
[374679867,1753410644344,-460.0,0.00017775,2]
[374679868,1753410644354,-467.30681667,0.00017775,2]
[374679870,1753410644363,-460.0,0.00017775,2]
[374679882,1753410644502,-460.0,0.00017775,2]
[374679884,1753410644512,-460.0,0.00017775,2]
[374679886,1753410644521,-460.0,0.00017775,2]
[374679888,1753410644532,-460.0,0.00017775,2]
[374679890,1753410644544,-429.51103358,0.00017775,2]
[374679892,1753410644553,-708.61,0.00017775,2]
[374679893,1753410644563,-460.0,0.00017775,2]
[374679895,1753410644573,-460.0,0.00017775,2]
[374679897,1753410644582,-241.51258533,0.00017775,2]
[374679899,1753410644591,-460.0,0.00017775,2]
[374679901,1753410644601,-607.90989314,0.00017775,2]
[374679902,1753410644610,-707.69,0.00017775,2]
[374679904,1753410644620,-460.0,0.00017775,2]
[374679906,1753410644630,-460.0,0.00017775,2]
[374679908,1753410644639,-460.0,0.00017775,2]
[374679910,1753410644649,-462.09466927,0.00017775,2]
[374679911,1753410644659,-465.70748847,0.00017775,2]
[374679913,1753410644668,-460.0,0.00017775,2]
[374679915,1753410644677,-460.0,0.00017775,2]
[374679917,1753410644687,-460.0,0.00017775,2]
[374679919,1753410644696,-460.0,0.00017775,2]
[374679920,1753410644705,-460.0,0.00017775,2]
[374679922,1753410644715,-460.0,0.00017775,2]
[374679924,1753410644724,-460.0,0.00017775,2]
[374679926,1753410644733,-495.41,0.00017775,2]
[374679927,1753410644742,-460.0,0.00017775,2]
[374679929,1753410644752,-460.0,0.00017775,2]
[374679931,1753410644761,-460.0,0.00017775,2]
[374679933,1753410644770,-487.03756914,0.00017775,2]
[374679935,1753410644780,-460.0,0.00017775,2]
[374679936,1753410644792,-460.0,0.00017775,2]
[374679938,1753410644801,-460.0,0.00017775,2]
[374679940,1753410644810,-387.67244614,0.00017775,2]
[374679942,1753410644820,-1047.05,0.00017775,2]
[374679944,1753410644829,-460.0,0.00017775,2]
[374679945,1753410644838,-460.0,0.00017775,2]
[374679949,1753410644847,-584.03,0.00017775,2]
[374679952,1753410644856,-460.0,0.00017775,2]
[374679955,1753410644865,-460.0,0.00017775,2]
[374679957,1753410644875,-465.74254616,0.00017775,2]
[374679958,1753410644884,-460.0,0.00017775,2]
[374679960,1753410644893,-460.0,0.00017775,2]
[374679962,1753410644903,-456.66467324,0.00017775,2]
[374679964,1753410644912,-460.0,0.00017775,2]
[374679966,1753410644922,-462.66835996,0.00017775,2]
[374679968,1753410644931,-460.0,0.00017775,2]
[374679970,1753410644941,-460.0,0.00017775,2]
[374679971,1753410644950,-460.0,0.00017775,2]
[374679973,1753410644959,-460.0,0.00017775,2]
[374679975,1753410644968,-460.0,0.00017775,2]
[374679976,1753410644978,-773.56,0.00017775,2]
[374679978,1753410644987,-460.0,0.00017775,2]
[374679980,1753410644996,-460.0,0.00017775,2]
[374679982,1753410645006,-479.45206027,0.00017775,2]
[374679984,1753410645015,-462.12233882,0.00017775,2]
[374679986,1753410645025,-1012.15,0.00017775,2]
[374679988,1753410645036,-464.29084928,0.00017775,2]
[374679990,1753410645046,-519.48,0.00017775,2]
[374679992,1753410645062,-797.69,0.00017775,2]
[374679993,1753410645072,-6186.6,0.00017775,2]
[374679995,1753410645081,-1104.74,0.00017775,2]
[374679997,1753410645092,-2434.21,0.00017775,2]
[374679999,1753410645101,-489.76,0.00017775,2]
[374680001,1753410645110,-460.0,0.00017775,2]
[374680003,1753410645120,-824.96,0.00017775,2]
[374680005,1753410645132,-3551.94,0.00017775,2]
[374680006,1753410645141,-460.0,0.00017775,2]
[374680008,1753410645150,-460.0,0.00017775,2]
[374680010,1753410645160,-460.0,0.00017775,2]
[374680012,1753410645169,-460.0,0.00017775,2]
[374680014,1753410645179,-537.45,0.00017775,2]
[374680016,1753410645188,-597.97,0.00017775,2]
[374680018,1753410645198,-460.0,0.00017775,2]
[374680020,1753410645207,-460.0,0.00017775,2]
[374680021,1753410645217,-769.35,0.00017775,2]
[374680023,1753410645226,-548.05,0.00017775,2]
[374680025,1753410645236,-3618.34,0.00017775,2]
[374680027,1753410645245,-460.0,0.00017775,2]
[374680028,1753410645255,-669.02,0.00017775,2]
[374680029,1753410645264,-460.0,0.00017775,2]
[374680030,1753410645274,-618.66,0.00017775,2]
[374680031,1753410645283,-2183.0,0.00017775,2]
[374680032,1753410645293,-460.0,0.00017775,2]
[374680033,1753410645303,-798.0,0.00017775,2]
[374680034,1753410645312,-1662.31,0.00017775,2]
[374680035,1753410645322,-2580.53,0.00017775,2]
[374680036,1753410645332,-723.52,0.00017775,2]
[374680037,1753410645341,-2911.49,0.00017775,2]
[374680038,1753410645350,-460.0,0.00017775,2]
[374680040,1753410645360,-1899.99,0.00017775,2]
[374680042,1753410645369,-823.25,0.00017775,2]
[374680044,1753410645378,-460.0,0.00017775,2]
[374680045,1753410645387,-460.0,0.00017775,2]
[374680046,1753410645397,-1184.05,0.00017775,2]
[374680047,1753410645406,-460.0,0.00017775,2]
[374680048,1753410645415,-1186.37,0.00017775,2]
[374680049,1753410645424,-845.56,0.00017775,2]
[374680050,1753410645433,-466.68,0.00017775,2]
[374680051,1753410645443,-1166.67,0.00017775,2]
[374680052,1753410645452,-460.0,0.00017775,2]
[374680053,1753410645462,-460.0,0.00017775,2]
[374680054,1753410645471,-460.0,0.00017775,2]
[374680055,1753410645480,-460.0,0.00017775,2]
[374680056,1753410645494,-1960.72,0.00017775,2]
[374680057,1753410645504,-1837.22,0.00017775,2]
[374680058,1753410645513,-460.0,0.00017775,2]
[374680059,1753410645523,-684.41,0.00017775,2]
[374680060,1753410645533,-2087.95,0.00017775,2]
[374680061,1753410645543,-805.27,0.00017775,2]
[374680062,1753410645553,-460.0,0.00017775,2]
[374680063,1753410645562,-1307.26,0.00017775,2]
[374680064,1753410645571,-460.0,0.00017775,2]
[374680065,1753410645581,-857.62,0.00017775,2]
[374680067,1753410645591,-460.0,0.00017775,2]
[374680068,1753410645601,-460.0,0.00017775,2]
[374680069,1753410645610,-460.0,0.00017775,2]
[374680070,1753410645619,-460.0,0.00017775,2]
[374680071,1753410645628,-500.0,0.00017775,2]
[374680072,1753410645638,-500.0,0.00017775,2]
[374680073,1753410645648,-2118.52,0.00017775,2]
[374680074,1753410645657,-460.0,0.00017775,2]
[374680075,1753410645667,-477.31,0.00017775,2]
[374680076,1753410645676,-460.0,0.00017775,2]
[374680077,1753410645686,-259.21001175,0.00017775,2]
[374680078,1753410645695,-460.0,0.00017775,2]
[374680079,1753410645705,-994.19,0.00017775,2]
[374680080,1753410645714,-460.0,0.00017775,2]
[374680081,1753410645723,-460.0,0.00017775,2]
[374680082,1753410645733,-460.0,0.00017775,2]
[374680083,1753410645742,-460.0,0.00017775,2]
[374680084,1753410645752,-689.09,0.00017775,2]
[374680085,1753410645763,-460.0,0.00017775,2]
[374680086,1753410645772,-851.66,0.00017775,2]
[374680087,1753410645782,-5280.61,0.00017775,2]
[374680088,1753410645792,-460.0,0.00017775,2]
[374680089,1753410645801,-460.0,0.00017775,2]
[374680090,1753410645810,-818.01,0.00017775,2]
[374680091,1753410645820,-1060.82,0.00017775,2]
[374680092,1753410645829,-429.71421227,0.00017775,2]
[374680093,1753410645839,-460.0,0.00017775,2]
[374680094,1753410645848,-2954.27,0.00017775,2]
[374680095,1753410645858,-460.0,0.00017775,2]
[374680096,1753410645867,-668.67,0.00017775,2]
[374680097,1753410645876,-460.0,0.00017775,2]
[374680098,1753410645886,-460.0,0.00017775,2]
[374680099,1753410645895,-460.0,0.00017775,2]
[374680100,1753410645904,-460.0,0.00017775,2]
[374680101,1753410645914,-460.0,0.00017775,2]
[374680102,1753410645923,-460.0,0.00017775,2]
[374680103,1753410645933,-460.0,0.00017776,2]
[374680104,1753410645943,-460.0,0.00017776,2]
[374680105,1753410645952,-445.93920205,0.00017776,2]
[374680106,1753410645961,-460.0,0.00017776,2]
[374680107,1753410645970,-467.84190895,0.00017776,2]
[374680108,1753410645980,-460.0,0.00017776,2]
[374680109,1753410645990,-515.15,0.00017776,2]
[374680110,1753410645999,-460.0,0.00017776,2]
[374680111,1753410646008,-460.0,0.00017776,2]
[374680112,1753410646017,-460.0,0.00017776,2]
[374680113,1753410646027,-460.0,0.00017776,2]
[374680114,1753410646037,-555.36,0.00017776,2]
[374680115,1753410646047,-460.0,0.00017776,2]
[374680116,1753410646056,-460.0,0.00017776,2]
[374680117,1753410646066,-460.0,0.00017776,2]
[374680118,1753410646075,-460.0,0.00017776,2]
[374680119,1753410646084,-460.0,0.00017776,2]
[374680120,1753410646093,-460.0,0.00017776,2]
[374680121,1753410646103,-460.0,0.00017776,2]
[374680122,1753410646113,-460.0,0.00017776,2]
[374680123,1753410646123,-1327.67,0.00017776,2]
[374680124,1753410646133,-460.0,0.00017776,2]
[374680125,1753410646143,-168.438676,0.00017776,2]
[374680126,1753410646153,-460.0,0.00017776,2]
[374680127,1753410646162,-460.0,0.00017776,2]
[374680128,1753410646171,-460.0,0.00017776,2]
[374680129,1753410646181,-460.0,0.00017776,2]
[374680130,1753410646190,-460.0,0.00017776,2]
[374680131,1753410646200,-462.89445424,0.00017776,2]
[374680132,1753410646209,-460.0,0.00017776,2]
[374680133,1753410646219,-460.0,0.00017776,2]
[374680134,1753410646228,-530.06727711,0.00017776,2]
[374680135,1753410646238,-460.0,0.00017776,2]
[374680136,1753410646248,-460.0,0.00017776,2]
[374680137,1753410646257,-523.23,0.00017776,2]
[374680138,1753410646267,-460.0,0.00017776,2]
[374680139,1753410646276,-491.61,0.00017776,2]
[374680140,1753410646287,-153.73573547,0.00017776,2]
[374680141,1753410646297,-460.0,0.00017776,2]
[374680142,1753410646307,-460.0,0.00017776,2]
[374680143,1753410646316,-460.0,0.00017776,2]
[374680144,1753410646326,-465.63202682,0.00017776,2]
[374680145,1753410646335,-460.0,0.00017776,2]
[374680146,1753410646346,-463.91430884,0.00017776,2]
[374680147,1753410646356,-460.0,0.00017776,2]
[374680148,1753410646366,-461.99449265,0.00017776,2]
[374680149,1753410646379,-460.0,0.00017776,2]
[374680150,1753410646389,-460.0,0.00017776,2]
[374680151,1753410646398,-460.0,0.00017776,2]
[374680152,1753410646407,-461.09116366,0.00017776,2]
[374680153,1753410646416,-500.0,0.00017776,2]
[374680154,1753410646426,-460.0,0.00017776,2]
[374680155,1753410646435,-636.24,0.00017776,2]
[374680156,1753410646444,-460.0,0.00017776,2]
[374680157,1753410646453,-462.61295759,0.00017776,2]
[374680158,1753410646462,-460.0,0.00017776,2]
[374680159,1753410646471,-460.0,0.00017776,2]
[374680160,1753410646481,-460.0,0.00017776,2]
[374680161,1753410646493,-460.0,0.00017776,2]
[374680162,1753410646504,-500.0,0.00017776,2]
[374680163,1753410646513,-174.67482996,0.00017776,2]
[374680164,1753410646523,-462.06244568,0.00017776,2]
[374680166,1753410646534,-460.0,0.00017776,2]
[374680167,1753410646545,-460.0,0.00017776,2]
[374680169,1753410646555,-466.67990876,0.00017776,2]
[374680170,1753410646564,-460.0,0.00017777,2]
[374680171,1753410646574,-460.0,0.00017777,2]
[374680173,1753410646585,-460.0,0.00017777,2]
[374680174,1753410646594,-460.0,0.00017777,2]
[374680175,1753410646603,-460.0,0.00017777,2]
[374680176,1753410646613,-460.0,0.00017777,2]
[374680178,1753410646622,-460.0,0.00017777,2]
[374680179,1753410646631,-462.75101793,0.00017777,2]
[374680180,1753410646641,-460.0,0.00017777,2]
[374680182,1753410646650,-460.0,0.00017777,2]
[374680183,1753410646663,-460.0,0.00017777,2]
[374680185,1753410646672,-460.0,0.00017777,2]
[374680187,1753410646681,-460.0,0.00017777,2]
[374680189,1753410646691,-460.0,0.00017777,2]
[374680191,1753410646700,-460.0,0.00017777,2]
[374680193,1753410646710,-500.0,0.00017777,2]
[374680195,1753410646720,-460.0,0.00017777,2]
[374680197,1753410646729,-460.0,0.00017777,2]
[374680199,1753410646738,-460.0,0.00017777,2]
[374680201,1753410646747,-460.0,0.00017777,2]
[374680203,1753410646756,-460.0,0.00017777,2]
[374680205,1753410646765,-460.0,0.00017777,2]
[374680207,1753410646775,-460.0,0.00017777,2]
[374680208,1753410646785,-460.0,0.00017777,2]
[374680210,1753410646796,-327.85042692,0.00017777,2]
[374680213,1753410646806,-500.0,0.00017779,2]
[374680214,1753410646815,-460.0,0.0001778,2]
[374680216,1753410646825,-460.0,0.0001778,2]
[374680219,1753410646838,-460.0,0.0001778,2]
[374680220,1753410646847,-460.0,0.0001778,2]
[374680223,1753410646858,-461.512597,0.0001778,2]
[374680224,1753410646867,-460.0,0.0001778,2]
[374680226,1753410646877,-460.0,0.0001778,2]
[374680228,1753410646888,-460.0,0.0001778,2]
[374680230,1753410646897,-460.0,0.0001778,2]
[374680232,1753410646906,-529.65,0.0001778,2]
[374680234,1753410646916,-464.41029297,0.0001778,2]
[374680236,1753410646925,-460.0,0.0001778,2]
[374680238,1753410646935,-460.0,0.0001778,2]
[374680240,1753410646944,-460.0,0.0001778,2]
[374680242,1753410646954,-688.45,0.0001778,2]
[374680244,1753410646964,-460.0,0.0001778,2]
[374680246,1753410646974,-461.30391424,0.0001778,2]
[374680249,1753410646983,-460.0,0.0001778,2]
[374680251,1753410646993,-460.0,0.0001778,2]
[374680252,1753410647002,-460.0,0.0001778,2]
[374680254,1753410647011,-460.0,0.0001778,2]
[374680256,1753410647021,-460.0,0.0001778,2]
[374680258,1753410647030,-500.0,0.00017782,2]
[374680260,1753410647040,-6775.75941807,0.000179,2]
[374680262,1753410647049,-455.0,0.0001795,2]
[374680264,1753410647058,-559.7,0.0001795,2]
[374680266,1753410647068,-460.0,0.0001795,2]
[374680268,1753410647077,-494.51,0.0001795,2]
[374680270,1753410647086,-469.52,0.0001795,2]
[374680272,1753410647096,-515.84,0.0001795,2]
[374680274,1753410647105,-554.32,0.0001795,2]
[374680276,1753410647114,-460.0,0.0001795,2]
[374680278,1753410647124,-2480.89,0.0001795,2]
[374680280,1753410647134,-11744.66616718,0.00018,2]